[Event "Titled Tuesday Blitz May 10 Early 2022"]
[White "Le, Tuan Minh"]
[Black "Arabidze, Meri"]
[WhiteFideId "12401153"]
[BlackFideId "13604040"]
[WhiteElo "2450"]
[BlackElo "2335"]
[Result "1-0"]
[Round "05"]
[TimeControl "180+1"]
[Date "2022.05.11"]
[WhiteClock "0:01:01"]
[BlackClock "0:00:02"]

1. d4 {[%clk 0:03:00]}  f5 {[%clk 0:02:58]} 2. e4 {[%clk 0:03:00]}  fxe4 {[%clk 0:02:58]} 3. Nc3 {[%clk 0:03:00]}  Nf6 {[%clk 0:02:58]} 4. Bg5 {[%clk 0:03:00]}  Nc6 {[%clk 0:02:58]} 5. d5 {[%clk 0:03:00]}  Ne5 {[%clk 0:02:57]} 6. Qd4 {[%clk 0:03:00]}  Nf7 {[%clk 0:02:57]} 7. Bxf6 {[%clk 0:03:01]}  exf6 {[%clk 0:02:58]} 8. O-O-O {[%clk 0:03:01]}  Be7 {[%clk 0:02:35]} 9. Qxe4 {[%clk 0:02:57]}  Nd6 {[%clk 0:02:26]} 10. Qf4 {[%clk 0:02:38]}  O-O {[%clk 0:02:25]} 11. Nf3 {[%clk 0:02:39]}  a6 {[%clk 0:02:18]} 12. h4 {[%clk 0:02:37]}  b5 {[%clk 0:02:17]} 13. h5 {[%clk 0:02:37]}  Rb8 {[%clk 0:02:12]} 14. Bd3 {[%clk 0:02:36]}  b4 {[%clk 0:02:08]} 15. Ne4 {[%clk 0:02:36]}  f5 {[%clk 0:01:54]} 16. Ng3 {[%clk 0:02:19]}  Bf6 {[%clk 0:01:41]} 17. Rhe1 {[%clk 0:02:10]}  a5 {[%clk 0:01:32]} 18. Kb1 {[%clk 0:02:07]}  a4 {[%clk 0:01:31]} 19. Nxf5 {[%clk 0:02:04]}  b3 {[%clk 0:01:25]} 20. cxb3 {[%clk 0:02:00]}  axb3 {[%clk 0:01:25]} 21. a3 {[%clk 0:02:00]}  Bxb2 {[%clk 0:01:04]} 22. Kxb2 {[%clk 0:01:28]}  Nxf5 {[%clk 0:01:02]} 23. Bxf5 {[%clk 0:01:27]}  Qf6+ {[%clk 0:01:01]} 24. Nd4 {[%clk 0:01:25]}  d6 {[%clk 0:00:44]} 25. Be6+ {[%clk 0:01:19]}  Bxe6 {[%clk 0:00:39]} 26. Qxf6 {[%clk 0:01:19]}  Rxf6 {[%clk 0:00:39]} 27. Rxe6 {[%clk 0:01:11]}  Rxf2+ {[%clk 0:00:38]} 28. Re2 {[%clk 0:01:12]}  Rf4 {[%clk 0:00:18]} 29. Rd3 {[%clk 0:01:12]}  Rg4 {[%clk 0:00:17]} 30. Nc6 {[%clk 0:01:09]}  Rf8 {[%clk 0:00:15]} 31. Rxb3 {[%clk 0:01:09]}  Rg5 {[%clk 0:00:14]} 32. Rb7 {[%clk 0:01:07]}  Kh8 {[%clk 0:00:12]} 33. a4 {[%clk 0:01:05]}  Rxd5 {[%clk 0:00:12]} 34. a5 {[%clk 0:01:06]}  Rc5 {[%clk 0:00:12]} 35. Rc2 {[%clk 0:01:06]}  Rxh5 {[%clk 0:00:06]} 36. a6 {[%clk 0:01:06]}  Rh4 {[%clk 0:00:06]} 37. Kb3 {[%clk 0:01:04]}  Rh1 {[%clk 0:00:04]} 38. Kb2 {[%clk 0:01:01]}  Rh4 {[%clk 0:00:03]} 39. a7 {[%clk 0:01:02]}  Ra4 {[%clk 0:00:02]} 40. Rb8 {[%clk 0:01:03]}  Rg8 {[%clk 0:00:02]} 41. Ne7 {[%clk 0:01:01]} 1-0


[Site "https://www.chess.com"]

[Event "Titled Tuesday Blitz May 10 Early 2022"]
[White "Legenia, Artem"]
[Black "Khabinets, Ivan"]
[WhiteFideId "14136945"]
[BlackFideId "14115980"]
[WhiteElo "1936"]
[BlackElo "2114"]
[Result "0-1"]
[Round "05"]
[TimeControl "180+1"]
[Date "2022.05.11"]
[WhiteClock "0:00:03"]
[BlackClock "0:00:19"]

1. d4 {[%clk 0:02:58]}  d5 {[%clk 0:02:57]} 2. Nf3 {[%clk 0:02:58]}  e6 {[%clk 0:02:57]} 3. Bf4 {[%clk 0:02:55]}  Nf6 {[%clk 0:02:54]} 4. e3 {[%clk 0:02:54]}  Bd6 {[%clk 0:02:53]} 5. Bg3 {[%clk 0:02:52]}  O-O {[%clk 0:02:53]} 6. Bd3 {[%clk 0:02:51]}  c5 {[%clk 0:02:53]} 7. c3 {[%clk 0:02:51]}  Nc6 {[%clk 0:02:50]} 8. O-O {[%clk 0:02:46]}  Be7 {[%clk 0:02:42]} 9. h3 {[%clk 0:02:39]}  Bd6 {[%clk 0:02:40]} 10. Bxd6 {[%clk 0:02:37]}  Qxd6 {[%clk 0:02:40]} 11. Nbd2 {[%clk 0:02:26]}  e5 {[%clk 0:02:36]} 12. dxe5 {[%clk 0:02:26]}  Nxe5 {[%clk 0:02:37]} 13. Nxe5 {[%clk 0:02:26]}  Qxe5 {[%clk 0:02:38]} 14. Qf3 {[%clk 0:02:16]}  Re8 {[%clk 0:02:14]} 15. Rfe1 {[%clk 0:02:13]}  Ne4 {[%clk 0:02:03]} 16. Bxe4 {[%clk 0:02:10]}  dxe4 {[%clk 0:02:04]} 17. Qf4 {[%clk 0:01:43]}  Qxf4 {[%clk 0:01:00]} 18. exf4 {[%clk 0:01:41]}  f5 {[%clk 0:01:00]} 19. Rad1 {[%clk 0:01:32]}  b6 {[%clk 0:00:59]} 20. Nf1 {[%clk 0:01:30]}  Ba6 {[%clk 0:00:55]} 21. Ne3 {[%clk 0:01:30]}  g6 {[%clk 0:00:55]} 22. Rd7 {[%clk 0:01:30]}  Red8 {[%clk 0:00:52]} 23. Red1 {[%clk 0:01:29]}  Bd3 {[%clk 0:00:52]} 24. Nd5 {[%clk 0:01:23]}  Rxd7 {[%clk 0:00:48]} 25. Nf6+ {[%clk 0:01:23]}  Kf7 {[%clk 0:00:49]} 26. Nxd7 {[%clk 0:01:24]}  Ke6 {[%clk 0:00:49]} 27. Ne5 {[%clk 0:01:24]}  Rd8 {[%clk 0:00:46]} 28. h4 {[%clk 0:01:19]}  Kf6 {[%clk 0:00:41]} 29. f3 {[%clk 0:00:47]}  h6 {[%clk 0:00:37]} 30. Kf2 {[%clk 0:00:42]}  g5 {[%clk 0:00:32]} 31. hxg5+ {[%clk 0:00:41]}  hxg5 {[%clk 0:00:32]} 32. fxe4 {[%clk 0:00:36]}  gxf4 {[%clk 0:00:22]} 33. Nxd3 {[%clk 0:00:35]}  fxe4 {[%clk 0:00:22]} 34. Ke2 {[%clk 0:00:33]}  Rxd3 {[%clk 0:00:20]} 35. Rxd3 {[%clk 0:00:32]}  exd3+ {[%clk 0:00:21]} 36. Kxd3 {[%clk 0:00:32]}  Kf5 {[%clk 0:00:21]} 37. Ke2 {[%clk 0:00:20]}  Ke4 {[%clk 0:00:20]} 38. Kf2 {[%clk 0:00:19]}  c4 {[%clk 0:00:19]} 39. Ke2 {[%clk 0:00:20]}  b5 {[%clk 0:00:19]} 40. Kf2 {[%clk 0:00:15]}  Kd3 {[%clk 0:00:15]} 41. Kf3 {[%clk 0:00:15]}  Kc2 {[%clk 0:00:16]} 42. Kxf4 {[%clk 0:00:15]}  Kxb2 {[%clk 0:00:16]} 43. g4 {[%clk 0:00:15]}  b4 {[%clk 0:00:17]} 44. cxb4 {[%clk 0:00:06]}  c3 {[%clk 0:00:18]} 45. g5 {[%clk 0:00:03]}  c2 {[%clk 0:00:19]} 46. g6 {[%clk 0:00:03]}  c1=Q+ {[%clk 0:00:19]} 0-1


[Site "https://www.chess.com"]

[Event "Titled Tuesday Blitz May 10 Early 2022"]
[White "Levitskiy, Andrey"]
[Black "Todorovic, Bojan"]
[WhiteFideId "14132885"]
[BlackFideId "917087"]
[WhiteElo "2301"]
[BlackElo "2266"]
[Result "1-0"]
[Round "05"]
[TimeControl "180+1"]
[Date "2022.05.11"]
[WhiteClock "0:00:40"]
[BlackClock "0:00:45"]

1. e4 {[%clk 0:03:00]}  e5 {[%clk 0:02:58]} 2. Nf3 {[%clk 0:03:00]}  Nc6 {[%clk 0:02:58]} 3. Bc4 {[%clk 0:03:01]}  Be7 {[%clk 0:02:56]} 4. d4 {[%clk 0:03:00]}  d6 {[%clk 0:02:56]} 5. d5 {[%clk 0:02:59]}  Nb8 {[%clk 0:02:55]} 6. Bd3 {[%clk 0:03:00]}  Nd7 {[%clk 0:02:48]} 7. c4 {[%clk 0:03:00]}  Nc5 {[%clk 0:02:47]} 8. Bc2 {[%clk 0:03:01]}  a5 {[%clk 0:02:47]} 9. Nc3 {[%clk 0:03:00]}  Nf6 {[%clk 0:02:41]} 10. O-O {[%clk 0:02:54]}  O-O {[%clk 0:02:41]} 11. Be3 {[%clk 0:02:50]}  b6 {[%clk 0:02:21]} 12. a3 {[%clk 0:02:44]}  Ng4 {[%clk 0:02:18]} 13. b4 {[%clk 0:02:20]}  axb4 {[%clk 0:02:15]} 14. axb4 {[%clk 0:02:20]}  Rxa1 {[%clk 0:02:14]} 15. Qxa1 {[%clk 0:02:21]}  Nxe3 {[%clk 0:02:14]} 16. fxe3 {[%clk 0:02:22]}  Nd7 {[%clk 0:02:07]} 17. Nb5 {[%clk 0:02:11]}  Bb7 {[%clk 0:01:53]} 18. Qa7 {[%clk 0:01:55]}  Qc8 {[%clk 0:01:53]} 19. Bd3 {[%clk 0:01:46]}  c6 {[%clk 0:01:51]} 20. Nc3 {[%clk 0:01:43]}  Qc7 {[%clk 0:01:48]} 21. dxc6 {[%clk 0:01:37]}  Qxc6 {[%clk 0:01:47]} 22. Nd5 {[%clk 0:01:31]}  Bd8 {[%clk 0:01:48]} 23. Nd2 {[%clk 0:01:13]}  Qc8 {[%clk 0:01:21]} 24. Be2 {[%clk 0:01:09]}  Bxd5 {[%clk 0:01:17]} 25. exd5 {[%clk 0:01:07]}  Bg5 {[%clk 0:01:14]} 26. Ne4 {[%clk 0:00:58]}  Bxe3+ {[%clk 0:01:13]} 27. Kh1 {[%clk 0:00:59]}  f5 {[%clk 0:00:53]} 28. Nxd6 {[%clk 0:00:56]}  Qd8 {[%clk 0:00:54]} 29. Nxf5 {[%clk 0:00:48]}  Bf4 {[%clk 0:00:51]} 30. Bg4 {[%clk 0:00:41]}  Nf6 {[%clk 0:00:45]} 31. Qxg7# {[%clk 0:00:40]} 1-0


[Site "https://www.chess.com"]

[Event "Titled Tuesday Blitz May 10 Early 2022"]
[White "Lomaia, Diana"]
[Black "Krstulovic, Alex"]
[WhiteFideId "13612476"]
[BlackFideId "760056"]
[WhiteElo "1744"]
[BlackElo "2193"]
[Result "0-1"]
[Round "05"]
[TimeControl "180+1"]
[Date "2022.05.11"]
[WhiteClock "0:00:07"]
[BlackClock "0:00:35"]

1. d4 {[%clk 0:03:00]}  Nf6 {[%clk 0:02:59]} 2. c4 {[%clk 0:03:01]}  e6 {[%clk 0:02:59]} 3. Nc3 {[%clk 0:03:02]}  Bb4 {[%clk 0:02:58]} 4. Nf3 {[%clk 0:03:02]}  O-O {[%clk 0:02:56]} 5. g3 {[%clk 0:03:03]}  d5 {[%clk 0:02:52]} 6. Bg2 {[%clk 0:02:59]}  dxc4 {[%clk 0:02:52]} 7. O-O {[%clk 0:02:58]}  c6 {[%clk 0:02:47]} 8. a4 {[%clk 0:02:48]}  Nbd7 {[%clk 0:02:37]} 9. Bg5 {[%clk 0:02:04]}  h6 {[%clk 0:02:34]} 10. Bxf6 {[%clk 0:02:03]}  Qxf6 {[%clk 0:02:26]} 11. Qc2 {[%clk 0:01:43]}  Rb8 {[%clk 0:02:22]} 12. Ne4 {[%clk 0:01:36]}  Qe7 {[%clk 0:02:21]} 13. Qxc4 {[%clk 0:01:34]}  b5 {[%clk 0:02:19]} 14. Qc2 {[%clk 0:01:33]}  a5 {[%clk 0:02:15]} 15. Ne5 {[%clk 0:01:27]}  Nxe5 {[%clk 0:02:14]} 16. dxe5 {[%clk 0:01:27]}  Bb7 {[%clk 0:02:07]} 17. Rfd1 {[%clk 0:01:25]}  Rfd8 {[%clk 0:02:06]} 18. Rac1 {[%clk 0:01:20]}  Rd5 {[%clk 0:02:01]} 19. Nd6 {[%clk 0:01:03]}  Bxd6 {[%clk 0:01:58]} 20. Bxd5 {[%clk 0:01:02]}  Bxe5 {[%clk 0:01:34]} 21. Bxc6 {[%clk 0:01:02]}  Bxc6 {[%clk 0:01:34]} 22. Qxc6 {[%clk 0:01:01]}  bxa4 {[%clk 0:01:32]} 23. Qxa4 {[%clk 0:00:57]}  Bxb2 {[%clk 0:01:30]} 24. Rb1 {[%clk 0:00:46]}  Qg5 {[%clk 0:01:25]} 25. Qe4 {[%clk 0:00:42]}  Rb4 {[%clk 0:01:21]} 26. Qa8+ {[%clk 0:00:40]}  Kh7 {[%clk 0:01:20]} 27. Qe8 {[%clk 0:00:38]}  Qf5 {[%clk 0:01:15]} 28. Qc6 {[%clk 0:00:33]}  a4 {[%clk 0:01:12]} 29. Qf3 {[%clk 0:00:30]}  Qxf3 {[%clk 0:01:09]} 30. exf3 {[%clk 0:00:31]}  a3 {[%clk 0:01:09]} 31. Ra1 {[%clk 0:00:18]}  Bxa1 {[%clk 0:01:03]} 32. Rxa1 {[%clk 0:00:19]}  Rb3 {[%clk 0:01:04]} 33. Kg2 {[%clk 0:00:19]}  e5 {[%clk 0:01:02]} 34. g4 {[%clk 0:00:18]}  h5 {[%clk 0:00:59]} 35. h3 {[%clk 0:00:18]}  Kg6 {[%clk 0:00:58]} 36. Kg3 {[%clk 0:00:16]}  h4+ {[%clk 0:00:58]} 37. Kxh4 {[%clk 0:00:15]}  Rxf3 {[%clk 0:00:58]} 38. Ra2 {[%clk 0:00:14]}  f6 {[%clk 0:00:55]} 39. Re2 {[%clk 0:00:12]}  Kh6 {[%clk 0:00:53]} 40. g5+ {[%clk 0:00:12]}  fxg5+ {[%clk 0:00:51]} 41. Kg4 {[%clk 0:00:12]}  Rf4+ {[%clk 0:00:49]} 42. Kg3 {[%clk 0:00:13]}  Ra4 {[%clk 0:00:49]} 43. Ra2 {[%clk 0:00:11]}  Kh5 {[%clk 0:00:49]} 44. f3 {[%clk 0:00:11]}  g6 {[%clk 0:00:49]} 45. Kg2 {[%clk 0:00:11]}  Kh6 {[%clk 0:00:45]} 46. Kg3 {[%clk 0:00:11]}  Kg7 {[%clk 0:00:45]} 47. Kf2 {[%clk 0:00:11]}  Kf6 {[%clk 0:00:46]} 48. Kg3 {[%clk 0:00:11]}  Kf5 {[%clk 0:00:46]} 49. Kg2 {[%clk 0:00:10]}  Kf4 {[%clk 0:00:46]} 50. Kf2 {[%clk 0:00:11]}  Ra6 {[%clk 0:00:40]} 51. Kg2 {[%clk 0:00:11]}  Ke3 {[%clk 0:00:37]} 52. Kg3 {[%clk 0:00:11]}  Ra4 {[%clk 0:00:36]} 53. Kg2 {[%clk 0:00:09]}  Kd3 {[%clk 0:00:35]} 54. Kg3 {[%clk 0:00:10]}  Kc3 {[%clk 0:00:35]} 55. Ra1 {[%clk 0:00:07]}  a2 {[%clk 0:00:35]} 0-1


[Site "https://www.chess.com"]

[Event "Titled Tuesday Blitz May 10 Early 2022"]
[White "Maevsky, Nikolay"]
[Black "Zherebtsova, Alexandra"]
[WhiteFideId "4198220"]
[BlackFideId "24129518"]
[WhiteElo "2149"]
[BlackElo "2025"]
[Result "1-0"]
[Round "05"]
[TimeControl "180+1"]
[Date "2022.05.11"]
[WhiteClock "0:00:14"]
[BlackClock "0:00:11"]

1. d4 {[%clk 0:02:46]}  d5 {[%clk 0:02:37]} 2. Nf3 {[%clk 0:02:45]}  Nf6 {[%clk 0:02:36]} 3. e3 {[%clk 0:02:45]}  e6 {[%clk 0:02:23]} 4. Bd3 {[%clk 0:02:45]}  g6 {[%clk 0:02:21]} 5. b3 {[%clk 0:02:44]}  Bg7 {[%clk 0:02:22]} 6. Ba3 {[%clk 0:02:44]}  Nbd7 {[%clk 0:02:19]} 7. Nbd2 {[%clk 0:02:43]}  b6 {[%clk 0:02:19]} 8. O-O {[%clk 0:02:34]}  Bb7 {[%clk 0:02:18]} 9. c4 {[%clk 0:02:27]}  c5 {[%clk 0:02:14]} 10. Rc1 {[%clk 0:02:25]}  Rc8 {[%clk 0:02:09]} 11. Qe2 {[%clk 0:02:21]}  O-O {[%clk 0:02:06]} 12. cxd5 {[%clk 0:02:00]}  Nxd5 {[%clk 0:02:05]} 13. Nc4 {[%clk 0:01:58]}  cxd4 {[%clk 0:01:43]} 14. Bxf8 {[%clk 0:01:53]}  Nc3 {[%clk 0:01:40]} 15. Rxc3 {[%clk 0:01:38]}  dxc3 {[%clk 0:01:36]} 16. Bxg7 {[%clk 0:01:38]}  Kxg7 {[%clk 0:01:36]} 17. Rc1 {[%clk 0:01:20]}  Bxf3 {[%clk 0:01:32]} 18. gxf3 {[%clk 0:01:04]}  b5 {[%clk 0:01:29]} 19. Nd6 {[%clk 0:00:58]}  Rc5 {[%clk 0:01:10]} 20. Ne4 {[%clk 0:00:35]}  Rh5 {[%clk 0:00:57]} 21. Ng3 {[%clk 0:00:32]}  Rh3 {[%clk 0:00:35]} 22. Bxb5 {[%clk 0:00:26]}  Ne5 {[%clk 0:00:34]} 23. f4 {[%clk 0:00:22]}  Qh4 {[%clk 0:00:19]} 24. fxe5 {[%clk 0:00:20]}  Rxh2 {[%clk 0:00:19]} 25. Qf3 {[%clk 0:00:18]}  h5 {[%clk 0:00:16]} 26. Rxc3 {[%clk 0:00:16]}  Qh3 {[%clk 0:00:15]} 27. Bf1 {[%clk 0:00:15]}  Rh1+ {[%clk 0:00:11]} 28. Qxh1 {[%clk 0:00:14]} 1-0


[Site "https://www.chess.com"]

[Event "Titled Tuesday Blitz May 10 Early 2022"]
[White "Maghsoodloo, Parham"]
[Black "Ivanisevic, Ivan"]
[WhiteFideId "12539929"]
[BlackFideId "912417"]
[WhiteElo "2630"]
[BlackElo "2495"]
[Result "1-0"]
[Round "05"]
[TimeControl "180+1"]
[Date "2022.05.10"]
[WhiteClock "0:00:06"]
[BlackClock "0:00:01"]

1. d4 {[%clk 0:00:40]}  d5 {[%clk 0:03:00]} 2. c4 {[%clk 0:00:39]}  e6 {[%clk 0:03:00]} 3. Nf3 {[%clk 0:00:38]}  Nf6 {[%clk 0:02:59]} 4. Nc3 {[%clk 0:00:37]}  Nbd7 {[%clk 0:02:56]} 5. Bg5 {[%clk 0:00:36]}  c6 {[%clk 0:02:50]} 6. e3 {[%clk 0:00:36]}  Qa5 {[%clk 0:02:48]} 7. Nd2 {[%clk 0:00:27]}  Bb4 {[%clk 0:02:47]} 8. Qc2 {[%clk 0:00:25]}  dxc4 {[%clk 0:02:44]} 9. Bxf6 {[%clk 0:00:25]}  Nxf6 {[%clk 0:02:45]} 10. Nxc4 {[%clk 0:00:25]}  Qc7 {[%clk 0:02:43]} 11. Bd3 {[%clk 0:00:24]}  c5 {[%clk 0:02:40]} 12. a3 {[%clk 0:00:23]}  Bxc3+ {[%clk 0:02:27]} 13. bxc3 {[%clk 0:00:19]}  O-O {[%clk 0:02:22]} 14. Ne5 {[%clk 0:00:19]}  b6 {[%clk 0:02:16]} 15. O-O {[%clk 0:00:19]}  Bb7 {[%clk 0:02:17]} 16. f4 {[%clk 0:00:20]}  cxd4 {[%clk 0:02:10]} 17. exd4 {[%clk 0:00:20]}  Rac8 {[%clk 0:02:03]} 18. Rac1 {[%clk 0:00:21]}  Rfd8 {[%clk 0:02:01]} 19. f5 {[%clk 0:00:19]}  Qe7 {[%clk 0:01:38]} 20. fxe6 {[%clk 0:00:19]}  fxe6 {[%clk 0:01:39]} 21. Qb2 {[%clk 0:00:16]}  Rc7 {[%clk 0:01:36]} 22. Rfe1 {[%clk 0:00:16]}  Nd5 {[%clk 0:01:29]} 23. c4 {[%clk 0:00:08]}  Nf4 {[%clk 0:01:28]} 24. Be4 {[%clk 0:00:09]}  Bxe4 {[%clk 0:01:21]} 25. Rxe4 {[%clk 0:00:10]}  Rf8 {[%clk 0:01:21]} 26. Kh1 {[%clk 0:00:10]}  Rcc8 {[%clk 0:01:11]} 27. Qd2 {[%clk 0:00:10]}  Ng6 {[%clk 0:01:04]} 28. Nxg6 {[%clk 0:00:10]}  hxg6 {[%clk 0:01:05]} 29. Qe3 {[%clk 0:00:09]}  Qf6 {[%clk 0:01:03]} 30. h3 {[%clk 0:00:09]}  Rc6 {[%clk 0:00:59]} 31. c5 {[%clk 0:00:07]}  bxc5 {[%clk 0:00:57]} 32. Rxc5 {[%clk 0:00:08]}  Rd6 {[%clk 0:00:56]} 33. Rce5 {[%clk 0:00:08]}  Qf1+ {[%clk 0:00:51]} 34. Kh2 {[%clk 0:00:09]}  Rf6 {[%clk 0:00:48]} 35. Rxe6 {[%clk 0:00:08]}  Rdxe6 {[%clk 0:00:30]} 36. Rxe6 {[%clk 0:00:09]}  Rxe6 {[%clk 0:00:28]} 37. Qxe6+ {[%clk 0:00:09]}  Kh7 {[%clk 0:00:29]} 38. Qe4 {[%clk 0:00:09]}  Qa1 {[%clk 0:00:26]} 39. Qh4+ {[%clk 0:00:09]}  Kg8 {[%clk 0:00:26]} 40. Qd8+ {[%clk 0:00:09]}  Kh7 {[%clk 0:00:26]} 41. Qd6 {[%clk 0:00:08]}  a5 {[%clk 0:00:23]} 42. d5 {[%clk 0:00:08]}  a4 {[%clk 0:00:23]} 43. Qg3 {[%clk 0:00:08]}  Qd4 {[%clk 0:00:21]} 44. d6 {[%clk 0:00:06]}  Kh6 {[%clk 0:00:16]} 45. h4 {[%clk 0:00:05]}  Kh7 {[%clk 0:00:15]} 46. Kh3 {[%clk 0:00:06]}  Qd5 {[%clk 0:00:15]} 47. Qf4 {[%clk 0:00:03]}  Qd3+ {[%clk 0:00:15]} 48. g3 {[%clk 0:00:03]}  Qxa3 {[%clk 0:00:11]} 49. d7 {[%clk 0:00:03]}  Qd3 {[%clk 0:00:11]} 50. Qf7 {[%clk 0:00:03]}  Qd1 {[%clk 0:00:05]} 51. Qf4 {[%clk 0:00:01]}  Qxd7+ {[%clk 0:00:04]} 52. Kh2 {[%clk 0:00:02]}  Qa7 {[%clk 0:00:03]} 53. Qe4 {[%clk 0:00:02]}  Qa5 {[%clk 0:00:01]} 54. g4 {[%clk 0:00:02]}  a3 {[%clk 0:00:02]} 55. h5 {[%clk 0:00:02]}  Qd2+ {[%clk 0:00:02]} 56. Kh3 {[%clk 0:00:03]}  Qd6 {[%clk 0:00:02]} 57. Qc2 {[%clk 0:00:02]}  a2 {[%clk 0:00:02]} 58. hxg6+ {[%clk 0:00:01]}  Qxg6 {[%clk 0:00:02]} 59. Qxa2 {[%clk 0:00:02]}  Qd3+ {[%clk 0:00:03]} 60. Kh4 {[%clk 0:00:03]}  Qe3 {[%clk 0:00:03]} 61. Qc2+ {[%clk 0:00:03]}  g6 {[%clk 0:00:03]} 62. Qc7+ {[%clk 0:00:03]}  Kh6 {[%clk 0:00:04]} 63. Qg3 {[%clk 0:00:03]}  Qg5+ {[%clk 0:00:03]} 64. Kh3 {[%clk 0:00:03]}  Qf6 {[%clk 0:00:04]} 65. Qe3+ {[%clk 0:00:04]}  g5 {[%clk 0:00:03]} 66. Qd3 {[%clk 0:00:04]}  Qg6 {[%clk 0:00:04]} 67. Qc3 {[%clk 0:00:04]}  Qe6 {[%clk 0:00:03]} 68. Qh8+ {[%clk 0:00:04]}  Kg6 {[%clk 0:00:03]} 69. Qh5+ {[%clk 0:00:05]}  Kf6 {[%clk 0:00:03]} 70. Qh6+ {[%clk 0:00:05]}  Kf7 {[%clk 0:00:04]} 71. Qxg5 {[%clk 0:00:05]}  Qb3+ {[%clk 0:00:04]} 72. Kh4 {[%clk 0:00:06]}  Qf3 {[%clk 0:00:05]} 73. Qh5+ {[%clk 0:00:04]}  Kg7 {[%clk 0:00:04]} 74. Qe5+ {[%clk 0:00:04]}  Kh7 {[%clk 0:00:04]} 75. Kg5 {[%clk 0:00:04]}  Qf7 {[%clk 0:00:03]} 76. Qf5+ {[%clk 0:00:04]}  Qxf5+ {[%clk 0:00:01]} 77. Kxf5 {[%clk 0:00:05]}  Kg7 {[%clk 0:00:01]} 78. Kg5 {[%clk 0:00:06]} 1-0


[Site "https://www.chess.com"]

[Event "Titled Tuesday Blitz May 10 Early 2022"]
[White "Mammadzada, Gunay"]
[Black "Cunha, Lucas Aguiar"]
[WhiteFideId "13403729"]
[BlackFideId "2125404"]
[WhiteElo "2242"]
[BlackElo "2361"]
[Result "1-0"]
[Round "05"]
[TimeControl "180+1"]
[Date "2022.05.11"]
[WhiteClock "0:00:02"]
[BlackClock "0:00:05"]

1. Nf3 {[%clk 0:03:00]}  d5 {[%clk 0:03:00]} 2. b3 {[%clk 0:02:54]}  c5 {[%clk 0:02:59]} 3. e3 {[%clk 0:02:48]}  a6 {[%clk 0:02:59]} 4. Bb2 {[%clk 0:02:45]}  Nc6 {[%clk 0:03:00]} 5. d4 {[%clk 0:02:42]}  Bg4 {[%clk 0:02:59]} 6. Nbd2 {[%clk 0:02:41]}  e6 {[%clk 0:02:58]} 7. h3 {[%clk 0:02:40]}  Bh5 {[%clk 0:02:58]} 8. a3 {[%clk 0:02:40]}  Nf6 {[%clk 0:02:57]} 9. Bd3 {[%clk 0:02:39]}  Rc8 {[%clk 0:02:54]} 10. O-O {[%clk 0:02:38]}  Qc7 {[%clk 0:02:49]} 11. Re1 {[%clk 0:02:25]}  cxd4 {[%clk 0:02:44]} 12. exd4 {[%clk 0:02:25]}  Be7 {[%clk 0:02:38]} 13. c4 {[%clk 0:02:14]}  dxc4 {[%clk 0:02:37]} 14. bxc4 {[%clk 0:02:13]}  O-O {[%clk 0:02:38]} 15. Qb1 {[%clk 0:02:05]}  Rfd8 {[%clk 0:02:32]} 16. Ng5 {[%clk 0:01:29]}  Bg6 {[%clk 0:01:57]} 17. Bxg6 {[%clk 0:01:24]}  hxg6 {[%clk 0:01:58]} 18. Ngf3 {[%clk 0:01:10]}  b5 {[%clk 0:01:57]} 19. cxb5 {[%clk 0:00:56]}  axb5 {[%clk 0:01:58]} 20. Qd3 {[%clk 0:00:57]}  b4 {[%clk 0:01:57]} 21. a4 {[%clk 0:00:50]}  Na5 {[%clk 0:01:52]} 22. Qe3 {[%clk 0:00:35]}  Qc2 {[%clk 0:01:47]} 23. Rab1 {[%clk 0:00:30]}  Nd5 {[%clk 0:01:43]} 24. Qe4 {[%clk 0:00:23]}  Qxa4 {[%clk 0:01:25]} 25. Ne5 {[%clk 0:00:21]}  Qe8 {[%clk 0:01:19]} 26. Qg4 {[%clk 0:00:13]}  Nc3 {[%clk 0:01:05]} 27. Ra1 {[%clk 0:00:12]}  Nc6 {[%clk 0:01:04]} 28. Ndf3 {[%clk 0:00:07]}  Bf6 {[%clk 0:01:00]} 29. h4 {[%clk 0:00:07]}  Ne7 {[%clk 0:00:59]} 30. h5 {[%clk 0:00:06]}  gxh5 {[%clk 0:00:59]} 31. Qxh5 {[%clk 0:00:07]}  Ned5 {[%clk 0:00:57]} 32. Qh3 {[%clk 0:00:02]}  Ra8 {[%clk 0:00:53]} 33. Ng4 {[%clk 0:00:02]}  Be7 {[%clk 0:00:49]} 34. Qg3 {[%clk 0:00:02]}  Bd6 {[%clk 0:00:43]} 35. Nfe5 {[%clk 0:00:02]}  f6 {[%clk 0:00:41]} 36. Nh6+ {[%clk 0:00:02]}  Kh7 {[%clk 0:00:32]} 37. Nhf7 {[%clk 0:00:03]}  fxe5 {[%clk 0:00:20]} 38. Qh3+ {[%clk 0:00:04]}  Kg8 {[%clk 0:00:19]} 39. Nxd8 {[%clk 0:00:05]}  Rxd8 {[%clk 0:00:17]} 40. dxe5 {[%clk 0:00:06]}  Bc5 {[%clk 0:00:15]} 41. Ra6 {[%clk 0:00:04]}  Nf4 {[%clk 0:00:14]} 42. Qg4 {[%clk 0:00:04]}  Nd3 {[%clk 0:00:10]} 43. Re2 {[%clk 0:00:04]}  Nxb2 {[%clk 0:00:06]} 44. Rxb2 {[%clk 0:00:03]}  Qf7 {[%clk 0:00:05]} 45. Rxe6 {[%clk 0:00:02]} 1-0


[Site "https://www.chess.com"]

[Event "Titled Tuesday Blitz May 10 Early 2022"]
[White "Martic, Ivan"]
[Black "Vasquez Schroeder, Rodrigo"]
[WhiteFideId "929301"]
[BlackFideId "3400042"]
[WhiteElo "2317"]
[BlackElo "2567"]
[Result "0-1"]
[Round "05"]
[TimeControl "180+1"]
[Date "2022.05.11"]
[WhiteClock "0:00:41"]
[BlackClock "0:01:58"]

1. e4 {[%clk 0:03:00]}  c5 {[%clk 0:02:59]} 2. Nf3 {[%clk 0:03:00]}  d6 {[%clk 0:02:59]} 3. d4 {[%clk 0:03:00]}  cxd4 {[%clk 0:03:00]} 4. Nxd4 {[%clk 0:03:01]}  Nf6 {[%clk 0:02:59]} 5. f3 {[%clk 0:03:01]}  Nc6 {[%clk 0:02:58]} 6. c4 {[%clk 0:03:01]}  e6 {[%clk 0:02:58]} 7. Nc3 {[%clk 0:03:02]}  Be7 {[%clk 0:02:59]} 8. Be3 {[%clk 0:02:59]}  O-O {[%clk 0:02:59]} 9. Nc2 {[%clk 0:02:57]}  Qa5 {[%clk 0:02:47]} 10. Qd2 {[%clk 0:02:55]}  Rd8 {[%clk 0:02:46]} 11. Be2 {[%clk 0:02:42]}  d5 {[%clk 0:02:42]} 12. cxd5 {[%clk 0:02:38]}  exd5 {[%clk 0:02:42]} 13. Nxd5 {[%clk 0:02:35]}  Nxd5 {[%clk 0:02:38]} 14. exd5 {[%clk 0:02:30]}  Nb4 {[%clk 0:02:28]} 15. O-O {[%clk 0:02:17]}  Rxd5 {[%clk 0:02:25]} 16. Qc3 {[%clk 0:02:06]}  Nxc2 {[%clk 0:02:20]} 17. Qxc2 {[%clk 0:02:02]}  Bf5 {[%clk 0:02:20]} 18. Qb3 {[%clk 0:01:53]}  Re5 {[%clk 0:02:13]} 19. Kh1 {[%clk 0:01:28]}  Qb4 {[%clk 0:02:07]} 20. Bc4 {[%clk 0:00:40]}  Qxb3 {[%clk 0:02:05]} 21. axb3 {[%clk 0:00:41]}  Rxe3 {[%clk 0:02:04]} 22. Rfd1 {[%clk 0:00:41]}  a6 {[%clk 0:01:58]} 0-1


[Site "https://www.chess.com"]